fUSD/lending_fUSD_20250818
["ID","MTS","AMOUNT","RATE_DAILY","PERIOD"]
[380029337,1755485438611,-500.0,0.0001,2]
[380029338,1755485438621,-151.0,0.0001,2]
[380029339,1755485438630,-500.0,0.0001,2]
[380029340,1755485438639,-500.0,0.0001,2]
[380029341,1755485438650,-151.0,0.0001,2]
[380029342,1755485438659,-500.0,0.0001,2]
[380029343,1755485438669,-151.0,0.0001,2]
[380029344,1755485438679,-500.0,0.0001,2]
[380029345,1755485438689,-151.0,0.0001,2]
[380029346,1755485438698,-500.0,0.0001,2]
[380029347,1755485438707,-151.0,0.0001,2]
[380029348,1755485438716,-500.0,0.0001,2]
[380029349,1755485438726,-151.0,0.0001,2]
[380029350,1755485438735,-500.0,0.0001,2]
[380029351,1755485438744,-151.0,0.0001,2]
[380029352,1755485438753,-500.0,0.0001,2]
[380029353,1755485438763,-151.0,0.0001,2]
[380029354,1755485438772,-151.0,0.0001,2]
[380029355,1755485438781,-151.0,0.0001,2]
[380029356,1755485438792,-151.0,0.0001,2]
[380029357,1755485438802,-151.0,0.0001,2]
[380029358,1755485438812,-151.0,0.0001,2]
[380029359,1755485438822,-151.0,0.0001,2]
[380029360,1755485438833,-200.0,0.0001,2]
[380029361,1755485438847,-151.0,0.0001,2]
[380029362,1755485438856,-569.68833295,0.0001,2]
[380029363,1755485438865,-36025.51990418,0.0001,2]
[380029364,1755485438875,-189.24,0.0001002,2]
[380029365,1755485438884,-500.0,0.00010055,2]
[380029366,1755485438893,-2000.0,0.00010058,2]
[380029367,1755485438902,-503.257,0.0001007,2]
[380029368,1755485438911,-2000.0,0.0001007,2]
[380029369,1755485438922,-2000.0,0.0001007,2]
[380029370,1755485438932,-2000.0,0.0001007,2]
[380029371,1755485438943,-2000.0,0.0001007,2]
[380029372,1755485438955,-2000.0,0.0001007,2]
[380029373,1755485438966,-2000.0,0.0001007,2]
[380029374,1755485438976,-2000.0,0.0001007,2]
[380029375,1755485438985,-2000.0,0.0001007,2]
[380029376,1755485438994,-2000.0,0.0001007,2]
[380029377,1755485439003,-2000.0,0.0001007,2]
[380029378,1755485439018,-2000.0,0.0001007,2]
[380029379,1755485439034,-2000.0,0.0001007,2]
[380029380,1755485439044,-2000.0,0.0001007,2]
[380029381,1755485439054,-2000.0,0.0001007,2]
[380029382,1755485439063,-2000.0,0.0001007,2]
[380029383,1755485439072,-2000.0,0.0001007,2]
[380029384,1755485439081,-1867.587,0.0001007,2]
[380029385,1755485439091,-1000.0,0.00010073,2]
[380029386,1755485439109,-1000.0,0.00010073,2]
[380029387,1755485439121,-1000.0,0.00010073,2]
[380029388,1755485439131,-1000.0,0.00010073,2]
[380029389,1755485439141,-200.0,0.00010097,2]
[380029390,1755485439150,-1500.0,0.000101,3]
[380029391,1755485439159,-500.0,0.0001011,2]
[380029392,1755485439169,-150.0,0.00010162,2]
[380029393,1755485439179,-500.0,0.00010165,2]
[380029394,1755485439189,-200.0,0.00010198,2]
[380029395,1755485439198,-2000.0,0.000102,3]
[380029396,1755485439207,-500.0,0.0001022,2]
[380029397,1755485439217,-150.0,0.00010254,2]
[380029398,1755485439228,-150.0,0.00010254,2]
[380029399,1755485439238,-500.0,0.00010275,2]
[380029400,1755485439248,-250.0,0.00010282,2]
[380029401,1755485439258,-2600.0,0.000103,3]
[380029402,1755485439268,-200.0,0.000103,2]
[380029403,1755485439278,-500.0,0.0001033,2]
[380029404,1755485439288,-500.0,0.00010385,2]
[380029405,1755485439297,-500.0,0.000104,3]
[380029406,1755485439308,-569.68833295,0.000104,2]
[380029407,1755485439316,-200.0,0.00010403,2]
[380029408,1755485439326,-150.0,0.00010437,2]
[380029409,1755485439336,-150.0,0.00010437,2]
[380029410,1755485439345,-150.0,0.00010437,2]
[380029411,1755485439355,-500.0,0.0001044,2]
[380029412,1755485439365,-699.70945577,0.00010486,2]
[380029413,1755485439374,-500.0,0.00010495,2]
[380029414,1755485439383,-223.22,0.00010499,2]
[380029415,1755485439393,-500.0,0.000105,3]
[380029416,1755485439403,-151.0,0.00010548,2]
[380029417,1755485439412,-500.0,0.0001055,2]
[380029418,1755485439422,-500.0,0.000106,3]
[380029419,1755485439437,-500.0,0.00010605,2]
[380029420,1755485439446,-150.0,0.0001062,2]
[380029421,1755485439456,-150.0,0.0001062,2]
[380029422,1755485439466,-210.0,0.00010628,2]
[380029423,1755485439475,-500.0,0.0001066,2]
[380029424,1755485439485,-496.0,0.0001067,2]
[380029426,1755485439495,-150.0,0.0001068,2]
[380029427,1755485439504,-500.0,0.000107,3]
[380029428,1755485439513,-150.0,0.00010712,2]
[380029430,1755485439523,-500.0,0.00010715,2]
[380029431,1755485439532,-328.28,0.0001072,2]
[380029432,1755485439543,-204.0,0.00010726,2]
[380029433,1755485439552,-322.05,0.0001077,2]
[380029434,1755485439561,-166.86,0.00010781,2]
[380029435,1755485439571,-2000.0,0.000108,2]
[380029436,1755485439580,-1000.0,0.000108,3]
[380029437,1755485439590,-1126.08,0.000108,4]
[380029438,1755485439599,-811.0,0.000108,3]
[380029439,1755485439609,-821.27,0.00010844,2]
[380029440,1755485439619,-459.9313,0.00010849,2]
[380029441,1755485439629,-250.0,0.00010888,2]
[380029442,1755485439640,-1000.0,0.0001089,2]
[380029443,1755485439649,-1800.0,0.0001089,2]
[380029444,1755485439658,-3000.0,0.0001089,2]
[380029445,1755485439668,-250.0,0.0001089,2]
[380029446,1755485439677,-217.64729399,0.00010899,2]
[380029447,1755485439686,-217.6472939,0.00010899,2]
[380029448,1755485439696,-217.6472939,0.00010899,2]
[380029449,1755485439705,-217.6472939,0.00010899,2]
[380029450,1755485439715,-217.6472939,0.00010899,2]
[380029451,1755485439724,-217.6472939,0.000109,2]
[380029452,1755485439734,-217.6472939,0.000109,2]
[380029453,1755485439743,-217.6472939,0.000109,2]
[380029454,1755485439753,-217.6472939,0.000109,2]
[380029455,1755485439762,-1000.0,0.000109,2]
[380029456,1755485439773,-1251.40943873,0.000109,2]
[380029457,1755485439782,-21357.66726122,0.000109,2]
[380029458,1755485439793,-569.68833295,0.000109,2]
[380029459,1755485439802,-429.75174749,0.000109,2]
[380029460,1755485439811,-429.75174743,0.000109,2]
[380029461,1755485439821,-429.75174743,0.000109,2]
[380029462,1755485439831,-3981.73739307,0.000109,2]
[380029463,1755485439844,-429.75174743,0.000109,2]
[380029464,1755485439854,-429.75174743,0.000109,2]
[380029465,1755485439863,-429.75174743,0.000109,2]
[380029466,1755485439873,-429.75174743,0.000109,2]
[380029467,1755485439883,-429.75174743,0.000109,2]
[380029468,1755485439892,-217.6472939,0.000109,2]
[380029469,1755485439902,-559.68625351,0.000109,2]
[380029470,1755485439912,-1000.0,0.0001095,2]
[380029471,1755485439924,-676.0,0.00010959,2]
[380029472,1755485439934,-150.0,0.00010959,2]
[380029473,1755485439943,-4925.83,0.00010959,2]
[380029474,1755485439953,-500.0,0.00010973,2]
[380029475,1755485439962,-527.74833519,0.00010973,2]
[380029476,1755485439971,-500.0,0.00010973,2]
[380029477,1755485439981,-500.0,0.00010973,2]
[380029478,1755485439991,-500.0,0.00010973,2]
[380029479,1755485440001,-500.0,0.00010973,2]
[380029480,1755485440011,-500.0,0.00010973,2]
[380029481,1755485440020,-500.0,0.00010973,2]
[380029482,1755485440030,-500.0,0.00010973,2]
[380029483,1755485440040,-500.0,0.00010973,2]
[380029484,1755485440050,-501.63134813,0.00010973,2]
[380029485,1755485440059,-500.0,0.00010973,2]
[380029486,1755485440068,-500.0,0.00010973,2]
[380029487,1755485440078,-150.72577644,0.00010973,2]
[380029488,1755485440087,-500.0,0.00010973,2]
[380029489,1755485440096,-500.0,0.00010973,2]
[380029490,1755485440106,-500.0,0.00010973,2]
[380029491,1755485440115,-500.0,0.00010973,2]
[380029492,1755485440124,-500.0,0.00010973,2]
[380029493,1755485440135,-500.0,0.00010973,2]
[380029494,1755485440144,-510.13897176,0.00010973,2]
[380029496,1755485440154,-500.0,0.00010973,2]
[380029497,1755485440165,-500.0,0.00010973,2]
[380029498,1755485440460,-500.0,0.00010973,2]
[380029499,1755485440496,-500.0,0.00010973,2]
[380029500,1755485440507,-500.0,0.00010973,2]
[380029501,1755485440517,-500.0,0.00010973,2]
[380029502,1755485440527,-500.0,0.00010973,2]
[380029503,1755485440538,-489.73005226,0.00010973,2]
[380029504,1755485440547,-500.0,0.00010973,2]
[380029505,1755485440556,-500.0,0.00010973,2]
[380029506,1755485440565,-500.0,0.00010973,2]
[380029507,1755485440575,-294.91110892,0.00010973,2]
[380029508,1755485440584,-500.69974188,0.00010973,2]
[380029509,1755485440593,-500.0,0.00010973,2]
[380029510,1755485440602,-500.0,0.00010973,2]
[380029511,1755485440611,-500.0,0.00010973,2]
[380029512,1755485440619,-150.0,0.00010986,2]
[380029513,1755485440629,-236.18708013,0.00010986,2]
[380029514,1755485440640,-169.19047419,0.00010986,2]
[380029515,1755485440651,-153.97969395,0.00010986,2]
[380029516,1755485440661,-151.6432447,0.00010986,2]
[380029517,1755485440670,-155.63069274,0.00010986,2]
[380029518,1755485440679,-292.58153057,0.00010986,2]
[380029519,1755485440689,-189.42521967,0.00010986,2]
[380029520,1755485440698,-151.31924293,0.00010989,2]
[380029521,1755485440708,-500.0,0.00010989,2]
[380029522,1755485440718,-633.79931904,0.0001099,2]
[380029523,1755485440727,-633.79931904,0.0001099,2]
[380029524,1755485440737,-633.79931904,0.0001099,2]
[380029525,1755485440747,-150.0,0.00010991,2]
[380029526,1755485440757,-500.0,0.00010991,2]
[380029527,1755485440766,-500.0,0.00010991,2]
[380029528,1755485440775,-269.64252954,0.00010991,2]
[380029529,1755485440785,-500.0,0.00010991,2]
[380029530,1755485440795,-150.0,0.00010991,2]
[380029531,1755485440805,-150.0,0.00010991,2]
[380029532,1755485440814,-150.0,0.00010991,2]
[380029533,1755485440824,-150.0,0.00010991,2]
[380029534,1755485440839,-150.0,0.00010991,2]
[380029535,1755485440853,-150.0,0.00010991,2]
[380029536,1755485440863,-500.0,0.00010991,2]
[380029537,1755485440873,-500.0,0.00010991,2]
[380029538,1755485440883,-500.0,0.00010991,2]
[380029539,1755485440892,-150.0,0.00010991,2]
[380029540,1755485440901,-500.0,0.00010991,2]
[380029541,1755485440910,-500.0,0.00010991,2]
[380029542,1755485440920,-151.015736,0.00010991,2]
[380029543,1755485440930,-500.0,0.00010991,2]
[380029544,1755485440941,-500.0,0.00010991,2]
[380029545,1755485440950,-500.0,0.00010991,2]
[380029546,1755485440960,-150.0,0.00010991,2]
[380029547,1755485440970,-500.0,0.00010991,2]
[380029548,1755485440979,-500.0,0.00010991,2]
[380029549,1755485440988,-150.0,0.00010991,2]
[380029550,1755485440998,-500.0,0.00010991,2]
[380029551,1755485441007,-500.0,0.00010991,2]
[380029552,1755485441017,-500.0,0.00010991,2]
[380029553,1755485441027,-453.0,0.00010991,2]
[380029554,1755485441040,-500.0,0.00010991,2]
[380029555,1755485441051,-150.0,0.00010991,2]
[380029556,1755485441061,-150.0,0.00010991,2]
[380029557,1755485441070,-593.0,0.00010991,2]
[380029558,1755485441080,-760.0,0.00010991,2]
[380029559,1755485441090,-500.0,0.00010991,2]
[380029560,1755485441100,-3783.0,0.00010991,2]
[380029561,1755485441110,-150.0,0.00010991,2]
[380029562,1755485441122,-150.0,0.00010991,2]
[380029563,1755485441140,-150.0,0.00010991,2]
[380029564,1755485441150,-500.0,0.00010991,2]
[380029565,1755485441159,-2278.52,0.00010998,2]
[380029566,1755485441169,-2278.52,0.00010998,2]
[380029567,1755485441179,-1000.0,0.00010999,2]
[380029568,1755485441189,-194.58055401,0.00010999,3]
[380029569,1755485441199,-1211.66251023,0.00010999,3]
[380029570,1755485441209,-250000.0,0.00010999,2]
[380029571,1755485441219,-1000.0,0.00010999,2]
[380029572,1755485441229,-1000.0,0.00010999,2]
[380029573,1755485441241,-1000.0,0.00010999,2]
[380029574,1755485441251,-2278.52,0.00010999,2]
[380029575,1755485441260,-2278.52,0.00010999,2]
[380029576,1755485441272,-2278.52,0.00010999,2]
[380029577,1755485441282,-2278.52,0.00010999,2]
[380029578,1755485441292,-2278.52,0.00010999,2]
[380029579,1755485441303,-2278.52,0.00010999,2]
[380029580,1755485441313,-2278.52,0.00010999,2]
[380029581,1755485441323,-2278.52,0.00010999,2]
[380029582,1755485441332,-2278.52,0.00010999,2]
[380029583,1755485441342,-2278.52,0.00010999,2]
[380029584,1755485441353,-2278.52,0.00010999,2]
[380029585,1755485441363,-2278.52,0.00010999,2]
[380029586,1755485441373,-2278.52,0.00010999,2]
[380029587,1755485441383,-2278.52,0.00010999,2]
[380029588,1755485441393,-2278.52,0.00010999,2]
[380029589,1755485441404,-2278.52,0.00010999,2]
[380029590,1755485441413,-2278.52,0.00010999,2]
[380029591,1755485441424,-2278.52,0.00010999,2]
[380029592,1755485441433,-2278.52,0.00010999,2]
[380029593,1755485441443,-2278.52,0.00010999,2]
[380029594,1755485441453,-2278.52,0.00010999,2]
[380029595,1755485441462,-2278.52536992,0.00010999,2]
[380029596,1755485441472,-255.0,0.00010999,2]
[380029597,1755485441481,-5374.59,0.00010999,2]
[380029598,1755485441492,-150.0,0.00010999,2]
[380029599,1755485441501,-150.0,0.00010999,2]
[380029600,1755485441511,-150.0,0.00010999,2]
[380029601,1755485441522,-150.0,0.00010999,2]
[380029602,1755485441532,-150.0,0.00010999,2]
[380029603,1755485441548,-150.0,0.00010999,2]
[380029604,1755485441559,-150.0,0.00010999,2]
[380029605,1755485441569,-20661543.78638866,0.00011,2]
[380029606,1755485442869,-220202.84187133,0.00011,2]
[380029607,1755485442881,-81797.15473078,0.00011,2]
[380029608,1755485442897,-429.71636973,0.00011,2]
[380029613,1755485443075,-4369.0,0.00011,2]
[380029615,1755485443087,-17362.5,0.00011,2]
[380029620,1755485443126,-459.9784957,0.00011,2]
[380029621,1755485443138,-4639.7311006,0.00011,2]
[380029625,1755485445007,-180.70200898,0.00011,2]
[380029630,1755485446139,-46366.26253567,0.00011,2]
[380029632,1755485446150,-1180.08865648,0.00011,2]
[380029646,1755485448722,-42515.86718864,0.00011,2]
[380029647,1755485449011,-5022.70048876,0.00011,2]
[380029648,1755485449072,-70625.7898902,0.00011,2]
[380029649,1755485449084,-763.142274,0.00011,2]
[380029650,1755485449135,-273.17725333,0.00011,2]
[380029651,1755485450630,-379.12940536,0.000109,2]
[380029652,1755485450642,-128.60030249,0.000109,2]
[380029653,1755485450651,-5678.39969751,0.00011,2]
[380029654,1755485450663,-5806.75923662,0.00011,2]
[380029655,1755485450675,-2678.49482377,0.00011,2]
[380029656,1755485450686,-6924.60220003,0.00011,2]
[380029657,1755485450711,-3653.77702741,0.00011,2]
[380029658,1755485450722,-7303.0194318,0.00011,2]
[380029659,1755485450735,-476.76999996,0.00011,2]
[380029660,1755485451140,-12226.83111324,0.00011,2]
[380029661,1755485451153,-1165.2412255,0.00011,2]
[380029662,1755485451250,-250407.53443701,0.00011,2]
[380029663,1755485451263,-2530.73241075,0.00011,2]
[380029664,1755485452585,196.94,9.95e-05,2]
[380029665,1755485461089,-45.593898,9.95e-05,2]
[380029666,1755485473005,236.75,9.625e-05,2]
[380029667,1755485473030,539.79,9.625e-05,2]
[380029668,1755485476768,410.26897549,0.00013,7]
[380029670,1755485484227,197.06,9.899e-05,2]
[380029671,1755485485613,-49.85581498,9.899e-05,2]
[380029672,1755485488204,300.28837004,9.9e-05,2]
[380029673,1755485488889,-310.26344299,9.9e-05,2]
[380029674,1755485492693,-273.11536715,9.9e-05,2]
[380029675,1755485493231,-34.66718018,9.9e-05,2]
[380029676,1755485494874,-81.66563964,9.9e-05,2]
[380029677,1755485500353,393.18998806,9.9e-05,2]
[380029678,1755485500375,1075.54,9.9e-05,2]
[380029679,1755485503686,-243.08452339,9.899e-05,2]
[380029680,1755485508459,-233.59434675,9.899e-05,2]
[380029681,1755485509596,-362.50091455,9.899e-05,2]
[380029682,1755485511901,-288.44075385,9.899e-05,2]
[380029683,1755485515181,-72.37946146,9.899e-05,2]
[380029684,1755485515202,-31.27001194,9.9e-05,2]
[380029685,1755485515227,-50.91099316,9.9e-05,2]
[380029686,1755485522206,-188.85607966,9.899e-05,2]
[380029687,1755485530662,-111.14392034,9.899e-05,2]
[380029688,1755485536763,-34.52766829,9.899e-05,2]
[380029689,1755485549666,3000.0,9.52e-05,2]
[380029690,1755485558398,-33.57533658,9.899e-05,2]
[380029691,1755485586110,-72.25485075,9.899e-05,2]
[380029692,1755485593398,-10.59447609,9.899e-05,2]
[380029693,1755485625876,-409.96143242,9.899e-05,2]
[380029694,1755485626042,-26.62552913,9.899e-05,2]
[380029695,1755485632954,-273.37447087,9.899e-05,2]
[380029696,1755485632982,-163.97386764,9.899e-05,2]
[380029697,1755485633051,-244.84099868,9.899e-05,2]
[380029698,1755485650541,-151.0,9.9e-05,2]
[380029699,1755485665196,-473.68681459,9.9e-05,2]
[380029700,1755485669342,-289.77166378,9.9e-05,2]
[380029701,1755485670704,-34.63052847,9.9e-05,2]
[380029702,1755485670727,-265.53837491,9.9e-05,2]
[380029703,1755485673115,-174.74147564,9.9e-05,2]
[380029704,1755485674383,-165.5554247,9.9e-05,2]
[380029705,1755485677293,-450.63419628,9.9e-05,2]
[380029706,1755485681160,-178.32608903,9.9e-05,2]
[380029707,1755485681634,-229.08890072,9.9e-05,2]
[380029708,1755485682476,-211.28373796,9.9e-05,2]
[380029709,1755485685205,388.39,9.607e-05,2]
[380029710,1755485687013,-392.76962307,9.9e-05,2]
[380029711,1755485687137,-150.0,9.9e-05,2]
[380029712,1755485691266,-250.0,9.9e-05,2]
[380029713,1755485693408,-32.06217769,9.9e-05,2]
[380029714,1755485693429,-218.49641769,9.9e-05,2]
[380029715,1755485694590,-150.0,9.9e-05,2]
[380029716,1755485695113,-348.7312356,9.9e-05,2]
[380029717,1755485698998,-158.09415592,9.9e-05,2]
[380029719,1755485702196,-175.15584408,9.9e-05,2]
[380029720,1755485702664,187.11,9.598e-05,2]
[380029721,1755485703672,-150.0,9.899e-05,2]
[380029723,1755485708551,-21.49803983,9.899e-05,2]
[380029724,1755485708579,-128.50196017,9.899e-05,2]
[380029726,1755485722875,-163.91,9.899e-05,2]
[380029727,1755485728235,-333.25,9.899e-05,2]
[380029728,1755485738143,-202.94,9.899e-05,2]
[380029729,1755485740855,267.15,9.604e-05,2]
[380029730,1755485744767,-161.26,9.899e-05,2]
[380029731,1755485752410,-156.06741383,9.899e-05,2]
[380029732,1755485753105,-182.57258617,9.899e-05,2]
[380029733,1755485753128,-93.14178144,9.9e-05,2]
[380029734,1755485755316,-226.03298188,9.9e-05,2]
[380029735,1755485759368,-399.38517234,9.9e-05,2]
[380029736,1755485761349,-345.56468366,9.9e-05,2]
[380029737,1755485764675,-300.0,9.9e-05,2]
[380029738,1755485766453,-475.91000588,9.9e-05,2]
[380029739,1755485768645,-176.88092233,9.9e-05,2]
[380029740,1755485771779,-226.38827012,9.9e-05,2]
[380029741,1755485773452,-350.0,9.9e-05,2]
[380029742,1755485774883,13684.26300102,9.599e-05,2]
[380029743,1755485774906,5904.72004346,9.599e-05,2]
[380029744,1755485774928,3560.72695552,9.599e-05,2]
[380029745,1755485774956,-177.87589278,9.9e-05,2]
[380029746,1755485779345,-271.04288162,9.9e-05,2]
[380029747,1755485781039,-250.0,9.9e-05,2]
[380029748,1755485781176,-151.60586948,9.9e-05,2]
[380029749,1755485787184,-263.32866506,9.9e-05,2]
[380029750,1755485795976,-166.66666667,9.9e-05,2]
[380029751,1755485804025,-300.06,9.9e-05,2]
[380029752,1755485810366,-204.62,9.9e-05,2]
[380029753,1755485811121,2343.99308794,9.52e-05,2]
[380029754,1755485811143,656.00691206,9.52e-05,2]
[380029755,1755485817977,-200.0,9.9e-05,2]
[380029756,1755485827102,-185.7649517,9.9e-05,2]
[380029757,1755485841631,1000.0,6.6e-07,120]
[380029758,1755485842336,-344.73672701,9.9e-05,2]
[380029759,1755485849549,1000.0,6.6e-07,120]
[380029760,1755485849746,-170.39282414,9.9e-05,2]
[380029761,1755485857901,1000.0,6.6e-07,120]
[380029762,1755485858717,-216.90998638,9.9e-05,2]
[380029763,1755485864730,1000.0,6.6e-07,120]
[380029764,1755485864776,-168.86244886,9.9e-05,2]
[380029765,1755485865456,-256.411,9.9e-05,2]
[380029766,1755485871753,-200.0,9.8e-05,2]
[380029767,1755485872639,1000.0,6.6e-07,120]
[380029768,1755485879699,-150.5042,9.8e-05,2]
[380029769,1755485880114,-46.9916,9.9e-05,2]
[380029770,1755485885973,-200.0,9.899e-05,2]
[380029771,1755485886094,1000.0,6.6e-07,120]
[380029772,1755485893424,-51.0,9.899e-05,2]
[380029773,1755485893456,-49.0,9.899e-05,2]
[380029774,1755485902293,-151.0,9.9e-05,2]
[380029775,1755485907893,-200.0,9.9e-05,2]
[380029776,1755485915351,-1000.0,9.9e-05,2]
[380029777,1755485922095,-151.0,9.9e-05,2]
[380029778,1755485930111,-200.0,9.9e-05,2]
[380029779,1755485938301,-1000.0,9.9e-05,2]
[380029780,1755485946882,-151.0,9.899e-05,2]
[380029781,1755485953287,-200.0,9.8e-05,2]
[380029782,1755485960778,-56.411,9.8e-05,2]
[380029783,1755485960805,-149.0,9.899e-05,2]
[380029784,1755485960896,-589.178,9.9e-05,2]
[380029785,1755485965601,1000.0,6.6e-07,120]
[380029786,1755485971072,-187.99071475,9.9e-05,2]
[380029787,1755485972835,1000.0,6.6e-07,120]
[380029788,1755485976029,3000.0,0.0001099,7]
[380029789,1755485979672,1000.0,6.6e-07,120]
[380029790,1755485983293,2209.2,9.71e-05,2]
[380029791,1755485987002,1000.0,6.6e-07,120]
[380029792,1755485989516,-200.0,9.9e-05,2]
[380029793,1755485994711,1000.0,6.6e-07,120]
[380029794,1755486001891,1000.0,6.6e-07,120]
[380029796,1755486006098,-179.1184923,9.899e-05,2]
[380029797,1755486009050,1000.0,6.6e-07,120]
[380029798,1755486011280,-30.1184923,9.899e-05,2]
[380029799,1755486011303,-90.7630154,9.899e-05,2]
[380029800,1755486017494,1000.0,6.6e-07,120]
[380029801,1755486027186,1000.0,6.6e-07,120]
[380029802,1755486029156,-200.0,9.899e-05,2]
[380029804,1755486034790,1000.0,6.6e-07,120]
[380029805,1755486035433,-51.0,9.899e-05,2]
[380029806,1755486037628,-49.0,9.899e-05,2]
[380029807,1755486043404,1000.0,6.6e-07,120]
[380029808,1755486044446,-200.0,9.899e-05,2]
[380029809,1755486050141,339.61,9.623e-05,2]
[380029810,1755486051296,-276.25913115,9.899e-05,2]
[380029811,1755486051490,1000.0,6.6e-07,120]
[380029812,1755486053593,-151.0,9.899e-05,2]
[380029813,1755486056765,1000.0,6.6e-07,120]
[380029814,1755486064360,1000.0,6.6e-07,120]
[380029815,1755486074349,-151.0,9.899e-05,2]
[380029816,1755486083117,-85.29531821,9.894e-05,2]
[380029817,1755486083622,-78.12468179,9.894e-05,2]
[380029818,1755486089976,-200.0,9.899e-05,2]
[380029819,1755486116382,-200.0,9.8e-05,2]
[380029820,1755486116622,2000.0,8.341e-05,2]
[380029821,1755486116821,699.9031314,8.341e-05,2]
[380029822,1755486116842,1300.0968686,8.341e-05,2]
[380029823,1755486117417,2000.0,8.341e-05,2]
[380029824,1755486117622,2000.0,8.341e-05,2]
[380029825,1755486117814,604.62317486,8.341e-05,2]
[380029826,1755486117836,1395.37682514,8.341e-05,2]
[380029827,1755486117953,2000.0,8.341e-05,2]
[380029828,1755486118134,152.0,0.00015583,38]
[380029829,1755486118182,2000.0,8.341e-05,2]
[380029830,1755486118472,509.34321832,8.341e-05,2]
[380029831,1755486118493,1490.65678168,8.341e-05,2]
[380029832,1755486118704,2000.0,8.341e-05,2]
[380029833,1755486118947,152.0,0.00015513,37]
[380029834,1755486119342,152.0,0.00015442,36]
[380029835,1755486119375,2000.0,8.341e-05,2]
[380029836,1755486119728,414.06326178,8.341e-05,2]
[380029837,1755486119750,1585.93673822,8.341e-05,2]
[380029838,1755486119963,152.0,0.00015371,35]
[380029839,1755486120140,2000.0,8.341e-05,2]
[380029840,1755486120260,152.0,0.00015301,34]
[380029841,1755486120347,2000.0,8.341e-05,2]
[380029842,1755486120789,152.0,0.0001523,33]
[380029843,1755486120876,318.78330524,8.341e-05,2]
[380029844,1755486120898,1681.21669476,8.341e-05,2]
[380029845,1755486121225,2000.0,8.341e-05,2]
[380029846,1755486121288,152.0,0.0001516,32]
[380029847,1755486121375,2000.0,8.341e-05,2]
[380029848,1755486121477,152.0,0.00015089,31]
[380029849,1755486121587,223.5033487,8.341e-05,2]
[380029850,1755486121651,1000.0,6.6e-07,120]
[380029851,1755486121741,152.0,0.00015018,30]
[380029852,1755486128333,152.0,0.00013959,15]
[380029853,1755486128760,152.0,0.00013889,14]
[380029854,1755486128957,152.0,0.00013818,13]
[380029855,1755486129099,152.0,0.00013748,12]
[380029856,1755486129483,152.0,0.00013677,11]
[380029857,1755486129669,152.0,0.00013606,10]
[380029858,1755486130092,1000.0,6.6e-07,120]
[380029859,1755486138360,-334.77944504,8.341e-05,2]
[380029860,1755486138413,1000.0,6.6e-07,120]
[380029861,1755486143916,-151.0,8.341e-05,2]
[380029862,1755486160493,-200.0,8.341e-05,2]
[380029863,1755486179054,-151.0,8.341e-05,2]
[380029864,1755486187176,1000.0,6.6e-07,120]
[380029865,1755486195882,1000.0,6.6e-07,120]
[380029866,1755486196146,-200.0,8.341e-05,2]
[380029867,1755486204604,1000.0,6.6e-07,120]
[380029868,1755486211216,1000.0,6.6e-07,120]
[380029869,1755486219110,-270.56,8.341e-05,2]
[380029870,1755486220252,1000.0,6.6e-07,120]
[380029871,1755486227550,-160.11,8.341e-05,2]
[380029872,1755486229611,1000.0,6.6e-07,120]
[380029873,1755486234383,-309.04720626,8.341e-05,2]
[380029874,1755486234595,-318.76013097,8.341e-05,2]
[380029875,1755486238022,1000.0,6.6e-07,120]